[Event "Titled Tuesday Blitz January 10 Early 2023"]
[White "Lesbekova, Assel"]
[Black "Kobalia, Mikhail"]
[WhiteFideId "13713248"]
[BlackFideId "4119150"]
[WhiteElo "1772"]
[BlackElo "2578"]
[Result "0-1"]
[Round "05"]
[TimeControl "180+2"]
[Date "2023.01.10"]
[WhiteClock "0:00:02"]
[BlackClock "0:00:08"]

1. e4 {[%clk 0:02:55]}  c5 {[%clk 0:02:59]} 2. Nf3 {[%clk 0:02:52]}  e6 {[%clk 0:02:59]} 3. c4 {[%clk 0:02:50]}  Nc6 {[%clk 0:02:58]} 4. Be2 {[%clk 0:02:47]}  Nge7 {[%clk 0:02:58]} 5. d3 {[%clk 0:02:44]}  g6 {[%clk 0:02:55]} 6. Be3 {[%clk 0:02:36]}  d6 {[%clk 0:02:52]} 7. d4 {[%clk 0:02:36]}  Bg7 {[%clk 0:02:51]} 8. Nc3 {[%clk 0:02:29]}  cxd4 {[%clk 0:02:47]} 9. Nxd4 {[%clk 0:02:29]}  O-O {[%clk 0:02:47]} 10. O-O {[%clk 0:02:25]}  Nxd4 {[%clk 0:02:40]} 11. Bxd4 {[%clk 0:02:25]}  Bxd4 {[%clk 0:02:38]} 12. Qxd4 {[%clk 0:02:25]}  Nc6 {[%clk 0:02:37]} 13. Qd2 {[%clk 0:02:11]}  e5 {[%clk 0:02:36]} 14. f4 {[%clk 0:01:58]}  Nd4 {[%clk 0:02:32]} 15. fxe5 {[%clk 0:01:49]}  dxe5 {[%clk 0:02:31]} 16. Nd5 {[%clk 0:01:49]}  f6 {[%clk 0:02:28]} 17. Rad1 {[%clk 0:01:32]}  Be6 {[%clk 0:02:27]} 18. Ne3 {[%clk 0:01:32]}  Qb6 {[%clk 0:02:24]} 19. Kh1 {[%clk 0:01:25]}  Rad8 {[%clk 0:02:23]} 20. Bg4 {[%clk 0:00:33]}  f5 {[%clk 0:02:02]} 21. exf5 {[%clk 0:00:26]}  gxf5 {[%clk 0:02:02]} 22. Bh3 {[%clk 0:00:14]}  Qc7 {[%clk 0:01:02]} 23. Qf2 {[%clk 0:00:12]}  Qg7 {[%clk 0:01:01]} 24. Nxf5 {[%clk 0:00:11]}  Bxf5 {[%clk 0:00:57]} 25. Bxf5 {[%clk 0:00:10]}  h5 {[%clk 0:00:22]} 26. Rxd4 {[%clk 0:00:07]}  exd4 {[%clk 0:00:21]} 27. Be6+ {[%clk 0:00:07]}  Kh8 {[%clk 0:00:20]} 28. Bf5 {[%clk 0:00:06]}  Rd6 {[%clk 0:00:17]} 29. Qd2 {[%clk 0:00:04]}  Rdf6 {[%clk 0:00:15]} 30. Qd3 {[%clk 0:00:02]}  h4 {[%clk 0:00:14]} 31. g4 {[%clk 0:00:01]}  hxg3 {[%clk 0:00:13]} 32. hxg3 {[%clk 0:00:02]}  Qh6+ {[%clk 0:00:11]} 33. Kg2 {[%clk 0:00:02]}  Qe3 {[%clk 0:00:11]} 34. g4 {[%clk 0:00:01]}  Qxd3 {[%clk 0:00:10]} 35. Bxd3 {[%clk 0:00:02]}  Rxf1 {[%clk 0:00:10]} 36. Bxf1 {[%clk 0:00:03]}  Kg7 {[%clk 0:00:09]} 37. Bd3 {[%clk 0:00:03]}  Kh6 {[%clk 0:00:09]} 38. Kg3 {[%clk 0:00:03]}  Kg5 {[%clk 0:00:10]} 39. b4 {[%clk 0:00:03]}  b6 {[%clk 0:00:09]} 40. c5 {[%clk 0:00:03]}  bxc5 {[%clk 0:00:09]} 41. bxc5 {[%clk 0:00:03]}  Rc8 {[%clk 0:00:09]} 42. Be4 {[%clk 0:00:02]}  Rxc5 {[%clk 0:00:09]} 43. Bf5 {[%clk 0:00:02]}  Rc3+ {[%clk 0:00:08]} 44. Kf2 {[%clk 0:00:02]}  Kf4 {[%clk 0:00:08]} 45. Ke2 {[%clk 0:00:02]}  Ra3 {[%clk 0:00:08]} 46. Be6 {[%clk 0:00:02]}  Re3+ {[%clk 0:00:08]} 0-1


[Site "https://www.chess.com"]

[Event "Titled Tuesday Blitz January 10 Early 2023"]
[White "Chos, Alexey"]
[Black "Santos Ruiz, Miguel"]
[WhiteFideId "14117762"]
[BlackFideId "22291482"]
[WhiteElo "2296"]
[BlackElo "2590"]
[Result "0-1"]
[Round "05"]
[TimeControl "180+2"]
[Date "2023.01.10"]
[WhiteClock "0:00:02"]
[BlackClock "0:00:12"]

1. Nf3 {[%clk 0:03:00]}  d5 {[%clk 0:02:55]} 2. c4 {[%clk 0:03:00]}  e6 {[%clk 0:02:54]} 3. g3 {[%clk 0:02:59]}  dxc4 {[%clk 0:02:53]} 4. Bg2 {[%clk 0:02:59]}  a6 {[%clk 0:02:53]} 5. a4 {[%clk 0:02:54]}  Nc6 {[%clk 0:02:53]} 6. O-O {[%clk 0:02:53]}  e5 {[%clk 0:02:51]} 7. Nc3 {[%clk 0:02:47]}  Nf6 {[%clk 0:02:41]} 8. a5 {[%clk 0:02:37]}  Bd6 {[%clk 0:02:27]} 9. Qa4 {[%clk 0:02:34]}  O-O {[%clk 0:02:27]} 10. Qxc4 {[%clk 0:02:33]}  Be6 {[%clk 0:02:23]} 11. Qa4 {[%clk 0:02:18]}  Bd7 {[%clk 0:02:15]} 12. Qd1 {[%clk 0:02:10]}  h6 {[%clk 0:02:04]} 13. d3 {[%clk 0:02:09]}  Re8 {[%clk 0:02:04]} 14. Nd2 {[%clk 0:02:07]}  Qc8 {[%clk 0:01:55]} 15. Nc4 {[%clk 0:01:57]}  Bh3 {[%clk 0:01:49]} 16. Be3 {[%clk 0:01:52]}  Bxg2 {[%clk 0:01:48]} 17. Kxg2 {[%clk 0:01:49]}  Bf8 {[%clk 0:01:40]} 18. Rc1 {[%clk 0:01:46]}  Qd7 {[%clk 0:01:37]} 19. Qb3 {[%clk 0:01:43]}  Nd4 {[%clk 0:01:23]} 20. Qd1 {[%clk 0:01:16]}  Re6 {[%clk 0:01:10]} 21. f3 {[%clk 0:01:13]}  Rd8 {[%clk 0:01:04]} 22. Ne4 {[%clk 0:01:09]}  Nd5 {[%clk 0:01:01]} 23. Bf2 {[%clk 0:00:54]}  f5 {[%clk 0:00:52]} 24. Ned2 {[%clk 0:00:53]}  Nc6 {[%clk 0:00:44]} 25. Nb3 {[%clk 0:00:47]}  Qe8 {[%clk 0:00:38]} 26. e3 {[%clk 0:00:17]}  Ndb4 {[%clk 0:00:37]} 27. d4 {[%clk 0:00:16]}  exd4 {[%clk 0:00:36]} 28. exd4 {[%clk 0:00:17]}  Kh8 {[%clk 0:00:30]} 29. Rc3 {[%clk 0:00:13]}  Nd5 {[%clk 0:00:28]} 30. Rc2 {[%clk 0:00:11]}  Bb4 {[%clk 0:00:28]} 31. Qc1 {[%clk 0:00:07]}  Qg6 {[%clk 0:00:25]} 32. Nc5 {[%clk 0:00:05]}  Bxc5 {[%clk 0:00:25]} 33. dxc5 {[%clk 0:00:06]}  Ncb4 {[%clk 0:00:24]} 34. Rd2 {[%clk 0:00:06]}  Rde8 {[%clk 0:00:22]} 35. Rd4 {[%clk 0:00:05]}  Re2 {[%clk 0:00:20]} 36. Kg1 {[%clk 0:00:04]}  c6 {[%clk 0:00:20]} 37. Nd6 {[%clk 0:00:04]}  R8e7 {[%clk 0:00:19]} 38. Qb1 {[%clk 0:00:04]}  Nc2 {[%clk 0:00:16]} 39. Rd3 {[%clk 0:00:03]}  Nce3 {[%clk 0:00:14]} 40. Bxe3 {[%clk 0:00:03]}  Nxe3 {[%clk 0:00:15]} 41. Rf2 {[%clk 0:00:04]}  Rxf2 {[%clk 0:00:14]} 42. Kxf2 {[%clk 0:00:04]}  Qh5 {[%clk 0:00:15]} 43. h4 {[%clk 0:00:03]}  Nd5 {[%clk 0:00:13]} 44. Qd1 {[%clk 0:00:03]}  f4 {[%clk 0:00:13]} 45. Rd4 {[%clk 0:00:03]}  fxg3+ {[%clk 0:00:13]} 46. Kxg3 {[%clk 0:00:04]}  Qe5+ {[%clk 0:00:13]} 47. f4 {[%clk 0:00:03]}  Qe3+ {[%clk 0:00:14]} 48. Kh2 {[%clk 0:00:01]}  Qf2+ {[%clk 0:00:14]} 49. Kh3 {[%clk 0:00:01]}  Re3+ {[%clk 0:00:14]} 50. Kg4 {[%clk 0:00:02]}  Qg2+ {[%clk 0:00:12]} 0-1


[Site "https://www.chess.com"]

[Event "Titled Tuesday Blitz January 10 Early 2023"]
[White "Doluhanova, Evgeniya"]
[Black "Leiva, Gianmarco"]
[WhiteFideId "14112035"]
[BlackFideId "3804399"]
[WhiteElo "2275"]
[BlackElo "2392"]
[Result "0-1"]
[Round "05"]
[TimeControl "180+2"]
[Date "2023.01.10"]
[WhiteClock "0:00:03"]
[BlackClock "0:00:02"]

1. Nf3 {[%clk 0:02:54]}  Nf6 {[%clk 0:02:54]} 2. g3 {[%clk 0:02:53]}  d5 {[%clk 0:02:53]} 3. Bg2 {[%clk 0:02:53]}  Bg4 {[%clk 0:02:54]} 4. O-O {[%clk 0:02:53]}  c6 {[%clk 0:02:54]} 5. Ne5 {[%clk 0:02:53]}  Bh5 {[%clk 0:02:53]} 6. d4 {[%clk 0:02:52]}  Nbd7 {[%clk 0:02:53]} 7. Bf4 {[%clk 0:02:51]}  e6 {[%clk 0:02:53]} 8. Nd2 {[%clk 0:02:51]}  Be7 {[%clk 0:02:53]} 9. c3 {[%clk 0:02:45]}  O-O {[%clk 0:02:53]} 10. Re1 {[%clk 0:02:45]}  Nxe5 {[%clk 0:02:53]} 11. Bxe5 {[%clk 0:02:45]}  Re8 {[%clk 0:02:47]} 12. Qc1 {[%clk 0:02:45]}  c5 {[%clk 0:02:38]} 13. e4 {[%clk 0:02:33]}  cxd4 {[%clk 0:02:38]} 14. Bxd4 {[%clk 0:02:32]}  Qc7 {[%clk 0:02:35]} 15. Bxf6 {[%clk 0:01:53]}  Bxf6 {[%clk 0:02:34]} 16. exd5 {[%clk 0:01:53]}  exd5 {[%clk 0:02:34]} 17. Bxd5 {[%clk 0:01:53]}  Bg5 {[%clk 0:02:06]} 18. Qc2 {[%clk 0:01:42]}  Red8 {[%clk 0:02:02]} 19. Qd3 {[%clk 0:01:09]}  Bxd2 {[%clk 0:00:34]} 20. Qxd2 {[%clk 0:01:04]}  Qc5 {[%clk 0:00:33]} 21. c4 {[%clk 0:01:01]}  Qxc4 {[%clk 0:00:30]} 22. Bxc4 {[%clk 0:00:48]}  Rxd2 {[%clk 0:00:27]} 23. b3 {[%clk 0:00:48]}  Kf8 {[%clk 0:00:19]} 24. Re5 {[%clk 0:00:47]}  Bg6 {[%clk 0:00:13]} 25. a4 {[%clk 0:00:42]}  Rad8 {[%clk 0:00:13]} 26. Rae1 {[%clk 0:00:41]}  Rd1 {[%clk 0:00:12]} 27. Re8+ {[%clk 0:00:38]}  Rxe8 {[%clk 0:00:12]} 28. Rxd1 {[%clk 0:00:38]}  Bf5 {[%clk 0:00:11]} 29. f3 {[%clk 0:00:34]}  Re3 {[%clk 0:00:10]} 30. Kf2 {[%clk 0:00:34]}  Rc3 {[%clk 0:00:10]} 31. g4 {[%clk 0:00:28]}  Rc2+ {[%clk 0:00:08]} 32. Kg3 {[%clk 0:00:26]}  Bg6 {[%clk 0:00:03]} 33. Rd8+ {[%clk 0:00:21]}  Ke7 {[%clk 0:00:03]} 34. Rb8 {[%clk 0:00:21]}  b6 {[%clk 0:00:02]} 35. Rb7+ {[%clk 0:00:21]}  Kf6 {[%clk 0:00:02]} 36. Rxa7 {[%clk 0:00:21]}  h5 {[%clk 0:00:03]} 37. h3 {[%clk 0:00:18]}  hxg4 {[%clk 0:00:03]} 38. hxg4 {[%clk 0:00:18]}  Rc3 {[%clk 0:00:02]} 39. Ra6 {[%clk 0:00:11]}  Ke5 {[%clk 0:00:02]} 40. Rxb6 {[%clk 0:00:11]}  Be4 {[%clk 0:00:02]} 41. Rb5+ {[%clk 0:00:11]}  Kd4 {[%clk 0:00:02]} 42. Rb4 {[%clk 0:00:08]}  Rxf3+ {[%clk 0:00:02]} 43. Kh4 {[%clk 0:00:07]}  Ke5 {[%clk 0:00:02]} 44. Bb5 {[%clk 0:00:05]}  f6 {[%clk 0:00:01]} 45. Bd7 {[%clk 0:00:05]}  g5+ {[%clk 0:00:01]} 46. Kh5 {[%clk 0:00:03]}  Rh3# {[%clk 0:00:02]} 0-1


[Site "https://www.chess.com"]

[Event "Titled Tuesday Blitz January 10 Early 2023"]
[White "Womacka, Mathias"]
[Black "Gatterer, Florian"]
[WhiteFideId "4611390"]
[BlackFideId "811688"]
[WhiteElo "2396"]
[BlackElo "2170"]
[Result "1-0"]
[Round "05"]
[TimeControl "180+2"]
[Date "2023.01.10"]
[WhiteClock "0:00:21"]
[BlackClock "0:01:17"]

1. e4 {[%clk 0:03:00]}  c5 {[%clk 0:02:59]} 2. Nf3 {[%clk 0:02:59]}  e6 {[%clk 0:03:00]} 3. d4 {[%clk 0:02:59]}  cxd4 {[%clk 0:03:01]} 4. Nxd4 {[%clk 0:02:59]}  Nf6 {[%clk 0:03:01]} 5. Nc3 {[%clk 0:02:58]}  Nc6 {[%clk 0:03:01]} 6. Ndb5 {[%clk 0:02:58]}  Bb4 {[%clk 0:03:01]} 7. a3 {[%clk 0:02:57]}  Bxc3+ {[%clk 0:03:01]} 8. Nxc3 {[%clk 0:02:58]}  d5 {[%clk 0:03:01]} 9. exd5 {[%clk 0:02:58]}  exd5 {[%clk 0:03:00]} 10. Bd3 {[%clk 0:02:58]}  O-O {[%clk 0:02:55]} 11. O-O {[%clk 0:02:59]}  Bg4 {[%clk 0:02:55]} 12. f3 {[%clk 0:02:51]}  Bh5 {[%clk 0:02:54]} 13. Bg5 {[%clk 0:02:44]}  Qd6 {[%clk 0:02:47]} 14. Kh1 {[%clk 0:02:36]}  Bg6 {[%clk 0:02:25]} 15. Bxg6 {[%clk 0:02:12]}  hxg6 {[%clk 0:02:25]} 16. Bxf6 {[%clk 0:02:12]}  Qxf6 {[%clk 0:02:19]} 17. Qxd5 {[%clk 0:02:13]}  Rad8 {[%clk 0:02:12]} 18. Qb5 {[%clk 0:02:06]}  Rd2 {[%clk 0:02:09]} 19. Ne4 {[%clk 0:02:04]}  Qd4 {[%clk 0:01:56]} 20. Nxd2 {[%clk 0:02:02]}  Qxd2 {[%clk 0:01:57]} 21. Qxb7 {[%clk 0:01:59]}  Nd4 {[%clk 0:01:57]} 22. Rad1 {[%clk 0:01:50]}  Qe2 {[%clk 0:01:57]} 23. Qe4 {[%clk 0:01:37]}  Qxe4 {[%clk 0:01:54]} 24. fxe4 {[%clk 0:01:38]}  Nxc2 {[%clk 0:01:54]} 25. Rd7 {[%clk 0:01:38]}  Ne3 {[%clk 0:01:54]} 26. Rc1 {[%clk 0:01:29]}  Re8 {[%clk 0:01:49]} 27. Rcc7 {[%clk 0:01:21]}  Rxe4 {[%clk 0:01:49]} 28. Rxf7 {[%clk 0:01:15]}  Nf5 {[%clk 0:01:42]} 29. Kg1 {[%clk 0:01:09]}  Re2 {[%clk 0:01:37]} 30. b4 {[%clk 0:01:04]}  a6 {[%clk 0:01:32]} 31. g4 {[%clk 0:00:49]}  Nh4 {[%clk 0:01:31]} 32. Rxg7+ {[%clk 0:00:48]}  Kf8 {[%clk 0:01:29]} 33. Rgd7 {[%clk 0:00:38]}  Nf3+ {[%clk 0:01:12]} 34. Kf1 {[%clk 0:00:37]}  Re8 {[%clk 0:01:12]} 35. Rf7+ {[%clk 0:00:35]}  Kg8 {[%clk 0:01:13]} 36. Rxf3 {[%clk 0:00:35]}  Re4 {[%clk 0:01:11]} 37. h3 {[%clk 0:00:34]}  Rd4 {[%clk 0:01:11]} 38. Rff7 {[%clk 0:00:32]}  Re4 {[%clk 0:01:08]} 39. Rfd7 {[%clk 0:00:31]}  Re8 {[%clk 0:01:07]} 40. Rg7+ {[%clk 0:00:30]}  Kh8 {[%clk 0:01:06]} 41. Rh7+ {[%clk 0:00:30]}  Kg8 {[%clk 0:01:06]} 42. Rcg7+ {[%clk 0:00:29]}  Kf8 {[%clk 0:01:07]} 43. Rh8+ {[%clk 0:00:30]}  Kxg7 {[%clk 0:01:07]} 44. Rxe8 {[%clk 0:00:30]}  Kf6 {[%clk 0:01:08]} 45. Ra8 {[%clk 0:00:29]}  Kg5 {[%clk 0:01:09]} 46. Rxa6 {[%clk 0:00:29]}  Kh4 {[%clk 0:01:10]} 47. Rxg6 {[%clk 0:00:28]}  Kg3 {[%clk 0:01:11]} 48. b5 {[%clk 0:00:27]}  Kh2 {[%clk 0:01:11]} 49. b6 {[%clk 0:00:27]}  Kh1 {[%clk 0:01:12]} 50. Kf2 {[%clk 0:00:27]}  Kh2 {[%clk 0:01:13]} 51. b7 {[%clk 0:00:26]}  Kh1 {[%clk 0:01:14]} 52. Rh6 {[%clk 0:00:23]}  Kh2 {[%clk 0:01:15]} 53. b8=Q+ {[%clk 0:00:22]}  Kh1 {[%clk 0:01:16]} 54. Qb1+ {[%clk 0:00:21]}  Kh2 {[%clk 0:01:17]} 55. Qg1# {[%clk 0:00:21]} 1-0


[Site "https://www.chess.com"]

[Event "Titled Tuesday Blitz January 10 Early 2023"]
[White "Qashashvili, Alexandre"]
[Black "Parpiev, Isaak"]
[WhiteFideId "13600842"]
[BlackFideId "34281576"]
[WhiteElo "2505"]
[BlackElo "2167"]
[Result "1/2-1/2"]
[Round "05"]
[TimeControl "180+2"]
[Date "2023.01.10"]
[WhiteClock "0:00:17"]
[BlackClock "0:00:07"]

1. e4 {[%clk 0:02:58]}  e5 {[%clk 0:02:58]} 2. Nc3 {[%clk 0:02:59]}  Nc6 {[%clk 0:02:57]} 3. Nf3 {[%clk 0:03:00]}  Nf6 {[%clk 0:02:56]} 4. d4 {[%clk 0:03:00]}  d6 {[%clk 0:02:56]} 5. dxe5 {[%clk 0:02:59]}  Nxe5 {[%clk 0:02:56]} 6. Nxe5 {[%clk 0:02:54]}  dxe5 {[%clk 0:02:57]} 7. Qxd8+ {[%clk 0:02:54]}  Kxd8 {[%clk 0:02:57]} 8. Bc4 {[%clk 0:02:54]}  Ke8 {[%clk 0:02:53]} 9. Bg5 {[%clk 0:02:49]}  c6 {[%clk 0:02:51]} 10. f3 {[%clk 0:02:46]}  Nd7 {[%clk 0:02:41]} 11. a3 {[%clk 0:02:38]}  f6 {[%clk 0:02:41]} 12. Be3 {[%clk 0:02:37]}  Bc5 {[%clk 0:02:40]} 13. Bxc5 {[%clk 0:02:37]}  Nxc5 {[%clk 0:02:41]} 14. Ke2 {[%clk 0:02:35]}  Ke7 {[%clk 0:02:39]} 15. Rhd1 {[%clk 0:02:35]}  Ne6 {[%clk 0:02:35]} 16. Bxe6 {[%clk 0:02:33]}  Bxe6 {[%clk 0:02:36]} 17. Rd2 {[%clk 0:02:28]}  h5 {[%clk 0:02:35]} 18. Rad1 {[%clk 0:02:28]}  h4 {[%clk 0:02:34]} 19. h3 {[%clk 0:02:27]}  Rad8 {[%clk 0:02:33]} 20. Ke3 {[%clk 0:02:27]}  Rxd2 {[%clk 0:02:31]} 21. Rxd2 {[%clk 0:02:28]}  Rd8 {[%clk 0:02:31]} 22. Rxd8 {[%clk 0:02:27]}  Kxd8 {[%clk 0:02:32]} 23. Kd3 {[%clk 0:02:16]}  a5 {[%clk 0:02:28]} 24. Nd1 {[%clk 0:02:16]}  Ke7 {[%clk 0:02:24]} 25. Ne3 {[%clk 0:02:16]}  b5 {[%clk 0:02:15]} 26. c4 {[%clk 0:02:15]}  Kd6 {[%clk 0:01:39]} 27. cxb5 {[%clk 0:02:09]}  cxb5 {[%clk 0:01:38]} 28. Kc3 {[%clk 0:02:05]}  Kc6 {[%clk 0:01:27]} 29. b4 {[%clk 0:02:02]}  a4 {[%clk 0:01:26]} 30. Kd3 {[%clk 0:01:57]}  Kd6 {[%clk 0:01:22]} 31. Kc3 {[%clk 0:01:56]}  Ke7 {[%clk 0:01:19]} 32. Kd3 {[%clk 0:01:40]}  g6 {[%clk 0:01:13]} 33. Ke2 {[%clk 0:01:27]}  f5 {[%clk 0:01:10]} 34. Kf2 {[%clk 0:01:20]}  Kf6 {[%clk 0:01:09]} 35. Nd1 {[%clk 0:01:14]}  Kg5 {[%clk 0:01:03]} 36. Ke3 {[%clk 0:01:12]}  Bc4 {[%clk 0:01:01]} 37. Nc3 {[%clk 0:01:04]}  Bf1 {[%clk 0:00:56]} 38. Kf2 {[%clk 0:01:02]}  Bd3 {[%clk 0:00:55]} 39. Ke3 {[%clk 0:00:57]}  Bc4 {[%clk 0:00:55]} 40. Nd1 {[%clk 0:00:46]}  Bf1 {[%clk 0:00:31]} 41. Kf2 {[%clk 0:00:43]}  Bd3 {[%clk 0:00:28]} 42. Ke3 {[%clk 0:00:43]}  Bc4 {[%clk 0:00:24]} 43. Nb2 {[%clk 0:00:34]}  Be6 {[%clk 0:00:12]} 44. Nd3 {[%clk 0:00:31]}  Kf6 {[%clk 0:00:12]} 45. Nc5 {[%clk 0:00:27]}  Bc4 {[%clk 0:00:12]} 46. Nd7+ {[%clk 0:00:24]}  Ke6 {[%clk 0:00:12]} 47. Nf8+ {[%clk 0:00:24]}  Kf6 {[%clk 0:00:11]} 48. Nd7+ {[%clk 0:00:24]}  Ke6 {[%clk 0:00:11]} 49. Nc5+ {[%clk 0:00:22]}  Ke7 {[%clk 0:00:08]} 50. Nd3 {[%clk 0:00:20]}  f4+ {[%clk 0:00:05]} 51. Kd2 {[%clk 0:00:19]}  Kd6 {[%clk 0:00:05]} 52. Ne1 {[%clk 0:00:14]}  Bf1 {[%clk 0:00:03]} 53. Kc3 {[%clk 0:00:14]}  g5 {[%clk 0:00:03]} 54. Kd2 {[%clk 0:00:14]}  Ke6 {[%clk 0:00:03]} 55. Kd1 {[%clk 0:00:14]}  Kf6 {[%clk 0:00:04]} 56. Kc1 {[%clk 0:00:14]}  Kg6 {[%clk 0:00:04]} 57. Kd2 {[%clk 0:00:15]}  Kf7 {[%clk 0:00:04]} 58. Kc3 {[%clk 0:00:14]}  Ke6 {[%clk 0:00:04]} 59. Kb2 {[%clk 0:00:15]}  Ke7 {[%clk 0:00:05]} 60. Kc1 {[%clk 0:00:15]}  Ke8 {[%clk 0:00:06]} 61. Kd1 {[%clk 0:00:16]}  Kf7 {[%clk 0:00:06]} 62. Kd2 {[%clk 0:00:15]}  Kg7 {[%clk 0:00:07]} 63. Kc3 {[%clk 0:00:15]}  Kf6 {[%clk 0:00:07]} 64. Kd2 {[%clk 0:00:16]}  Kf7 {[%clk 0:00:05]} 65. Kc3 {[%clk 0:00:15]}  Kf8 {[%clk 0:00:06]} 66. Kd2 {[%clk 0:00:15]}  Kg8 {[%clk 0:00:07]} 67. Kc3 {[%clk 0:00:16]}  Kh8 {[%clk 0:00:05]} 68. Kd2 {[%clk 0:00:17]}  Kh7 {[%clk 0:00:05]} 69. Kc3 {[%clk 0:00:16]}  Kh6 {[%clk 0:00:06]} 70. Kc2 {[%clk 0:00:17]}  Kh5 {[%clk 0:00:06]} 71. Kd2 {[%clk 0:00:17]}  Kg6 {[%clk 0:00:05]} 72. Kd1 {[%clk 0:00:17]}  Kf6 {[%clk 0:00:06]} 73. Kc1 {[%clk 0:00:18]}  Kg6 {[%clk 0:00:06]} 74. Kb1 {[%clk 0:00:18]}  Bc4 {[%clk 0:00:06]} 75. Kc2 {[%clk 0:00:17]}  Bf1 {[%clk 0:00:07]} 76. Kd2 {[%clk 0:00:17]}  Kf7 {[%clk 0:00:07]} 1/2-1/2


[Site "https://www.chess.com"]

[Event "Titled Tuesday Blitz January 10 Early 2023"]
[White "Berezin, Viktor"]
[Black "Kamalidenova, Meruert"]
[WhiteFideId "14107872"]
[BlackFideId "13712802"]
[WhiteElo "2307"]
[BlackElo "2350"]
[Result "1/2-1/2"]
[Round "05"]
[TimeControl "180+2"]
[Date "2023.01.10"]
[WhiteClock "0:00:02"]
[BlackClock "0:00:16"]

1. d4 {[%clk 0:03:00]}  Nf6 {[%clk 0:02:58]} 2. c4 {[%clk 0:02:59]}  e6 {[%clk 0:02:58]} 3. Nf3 {[%clk 0:02:59]}  c5 {[%clk 0:02:57]} 4. d5 {[%clk 0:02:59]}  exd5 {[%clk 0:02:57]} 5. cxd5 {[%clk 0:03:00]}  d6 {[%clk 0:02:56]} 6. Nc3 {[%clk 0:03:00]}  g6 {[%clk 0:02:57]} 7. g3 {[%clk 0:03:00]}  Bg7 {[%clk 0:02:57]} 8. Bg2 {[%clk 0:03:00]}  O-O {[%clk 0:02:57]} 9. O-O {[%clk 0:03:01]}  Re8 {[%clk 0:02:51]} 10. Bf4 {[%clk 0:03:01]}  Ne4 {[%clk 0:02:49]} 11. Nxe4 {[%clk 0:03:00]}  Rxe4 {[%clk 0:02:49]} 12. Nd2 {[%clk 0:03:00]}  Rxf4 {[%clk 0:02:48]} 13. gxf4 {[%clk 0:02:56]}  Bxb2 {[%clk 0:02:48]} 14. Rb1 {[%clk 0:02:54]}  Bg7 {[%clk 0:02:48]} 15. Nc4 {[%clk 0:02:53]}  b6 {[%clk 0:02:43]} 16. Re1 {[%clk 0:02:48]}  Ba6 {[%clk 0:02:35]} 17. Qc2 {[%clk 0:02:47]}  Qc7 {[%clk 0:02:31]} 18. e4 {[%clk 0:02:45]}  Bxc4 {[%clk 0:02:26]} 19. Qxc4 {[%clk 0:02:44]}  Nd7 {[%clk 0:02:22]} 20. e5 {[%clk 0:02:42]}  Rd8 {[%clk 0:02:19]} 21. e6 {[%clk 0:02:35]}  Nf6 {[%clk 0:02:18]} 22. a4 {[%clk 0:02:30]}  Re8 {[%clk 0:02:13]} 23. a5 {[%clk 0:02:24]}  Bh6 {[%clk 0:02:01]} 24. Qa6 {[%clk 0:02:10]}  Bxf4 {[%clk 0:01:53]} 25. axb6 {[%clk 0:02:09]}  axb6 {[%clk 0:01:53]} 26. Rxb6 {[%clk 0:02:05]}  Re7 {[%clk 0:01:53]} 27. exf7+ {[%clk 0:01:56]}  Rxf7 {[%clk 0:01:44]} 28. Rc6 {[%clk 0:01:34]}  Qd7 {[%clk 0:01:42]} 29. Qc8+ {[%clk 0:01:30]}  Qxc8 {[%clk 0:01:38]} 30. Rxc8+ {[%clk 0:01:31]}  Kg7 {[%clk 0:01:38]} 31. Bh3 {[%clk 0:01:26]}  Nxd5 {[%clk 0:01:27]} 32. Be6 {[%clk 0:01:24]}  Re7 {[%clk 0:01:27]} 33. Kf1 {[%clk 0:01:00]}  Nf6 {[%clk 0:01:23]} 34. h3 {[%clk 0:00:57]}  Be5 {[%clk 0:01:18]} 35. Ba2 {[%clk 0:00:56]}  Ra7 {[%clk 0:01:15]} 36. Be6 {[%clk 0:00:53]}  Bd4 {[%clk 0:01:15]} 37. Rd8 {[%clk 0:00:50]}  Be5 {[%clk 0:01:11]} 38. Kg2 {[%clk 0:00:50]}  Kh6 {[%clk 0:01:07]} 39. Rf1 {[%clk 0:00:43]}  Nh5 {[%clk 0:01:07]} 40. Bg8 {[%clk 0:00:19]}  Nf4+ {[%clk 0:01:04]} 41. Kf3 {[%clk 0:00:19]}  Kg7 {[%clk 0:00:49]} 42. Rb1 {[%clk 0:00:15]}  Nxh3 {[%clk 0:00:45]} 43. Rh1 {[%clk 0:00:08]}  Ra3+ {[%clk 0:00:41]} 44. Kg2 {[%clk 0:00:05]}  Nf4+ {[%clk 0:00:39]} 45. Kg1 {[%clk 0:00:04]}  Ra1+ {[%clk 0:00:38]} 46. Kh2 {[%clk 0:00:05]}  Ne6+ {[%clk 0:00:36]} 47. Kg2 {[%clk 0:00:05]}  Rxh1 {[%clk 0:00:33]} 48. Bxe6 {[%clk 0:00:04]}  Rh2+ {[%clk 0:00:33]} 49. Kf3 {[%clk 0:00:05]}  Rh4 {[%clk 0:00:30]} 50. Bg8 {[%clk 0:00:03]}  Rf4+ {[%clk 0:00:29]} 51. Ke2 {[%clk 0:00:04]}  h5 {[%clk 0:00:28]} 52. Bd5 {[%clk 0:00:04]}  h4 {[%clk 0:00:28]} 53. Rd7+ {[%clk 0:00:04]}  Kh6 {[%clk 0:00:27]} 54. Ke3 {[%clk 0:00:04]}  Kg5 {[%clk 0:00:26]} 55. Rh7 {[%clk 0:00:04]}  Bd4+ {[%clk 0:00:26]} 56. Kd3 {[%clk 0:00:04]}  Rxf2 {[%clk 0:00:25]} 57. Be4 {[%clk 0:00:04]}  Rf6 {[%clk 0:00:20]} 58. Kc4 {[%clk 0:00:04]}  Kg4 {[%clk 0:00:18]} 59. Kd5 {[%clk 0:00:04]}  Kg3 {[%clk 0:00:19]} 60. Rh6 {[%clk 0:00:03]}  h3 {[%clk 0:00:18]} 61. Bxg6 {[%clk 0:00:03]}  h2 {[%clk 0:00:18]} 62. Ke4 {[%clk 0:00:03]}  Be5 {[%clk 0:00:17]} 63. Ke3 {[%clk 0:00:03]}  Bd4+ {[%clk 0:00:17]} 64. Ke4 {[%clk 0:00:03]}  Kg2 {[%clk 0:00:17]} 65. Kd5 {[%clk 0:00:01]}  Kg3 {[%clk 0:00:16]} 66. Ke4 {[%clk 0:00:02]} 1/2-1/2


[Site "https://www.chess.com"]